bitfinex/quotes_ETHUSD_20220213
["timestamp","ask_amount","ask_price","bid_price","bid_amount"]
[1644772300632,1.23920259,2876.7,2876.4,0.01132828]
[1644772300930,4.8,2877.1,2876.4,0.01132828]
[1644772300931,1.06540259,2876.6,2876.4,0.011328]
[1644772301132,0.86947,2876.9,2876.4,0.011328]
[1644772301333,1.24871602,2876.8,2876.4,0.011328]
[1644772301534,1.07491602,2876.7,2876.4,0.011328]
[1644772301932,1.07491602,2876.7,2875.7,0.17506796]
[1644772302133,1.07491602,2876.7,2876.4,0.01010303]
[1644772302134,1.07161602,2876.7,2876.4,0.01010303]
[1644772302338,0.1738,2876.8,2876.4,0.01010303]
[1644772303136,0.1738,2876.8,2876.2,1.73838]
[1644772303336,0.1738,2876.8,2876.4,1.74857303]
[1644772303634,0.1738,2876.8,2876.5,1.16921]
[1644772303836,0.1738,2876.8,2876.5,1.84301]
[1644772304035,0.00521903,2877.1,2876.5,1.84301]
[1644772304036,0.00521903,2877.1,2876.5,22.04301]
[1644772304281,0.00521903,2877.1,2876.5,1.84301]
[1644772304478,0.00521903,2877.1,2876.5,2.71217]
[1644772304682,0.00521903,2877.1,2876.6,2.60741]
[1644772304883,0.00521903,2877.1,2876.7,0.6738]
[1644772305881,0.00521903,2877.1,2876.7,1.36914]
[1644772306084,0.00521903,2877.1,2876.8,0.86914]
[1644772306284,0.00521903,2877.1,2876.9,0.6736]
[1644772306683,0.00521903,2877.1,2876.9,0.9736]
[1644772306984,0.01081445,2877.2,2876.9,0.9736]
[1644772307185,0.01081445,2877.2,2877.0,20.2]
[1644772307389,0.01081445,2877.2,2877.1,0.5]
[1644772308030,0.00359238,2877.8,2877.1,0.5]
[1644772308230,0.01081468,2877.3,2877.1,0.5]
[1644772308431,0.01081468,2877.3,2877.2,0.86903]
[1644772309030,0.00359238,2877.8,2877.2,0.86903]
[1644772309232,0.01100603,2877.4,2877.2,1.73802]
[1644772309432,0.01100603,2877.4,2877.2,1.73806]
[1644772309630,0.01100603,2877.4,2877.1,1.73798]
[1644772310231,0.00359238,2877.8,2877.1,1.02939931]
[1644772310631,0.01100603,2877.4,2877.1,1.02939931]
[1644772311434,0.04760989,2877.8,2877.1,1.02939931]
[1644772311697,0.00359238,2877.8,2877.1,1.02939931]
[1644772311889,0.00359238,2877.8,2877.2,1.73988381]
[1644772312091,0.96006085,2877.8,2877.2,0.00182381]
[1644772312290,0.65379447,2877.7,2877.2,0.00182381]
[1644772312491,0.82739447,2877.7,2877.2,0.00182381]
[1644772312693,0.1736,2877.7,2877.2,0.00182381]
[1644772312889,0.65379447,2877.7,2877.2,0.00182381]
[1644772313091,0.1736,2877.7,2877.2,0.00182381]
[1644772313290,0.82739447,2877.7,2877.2,0.00182381]
[1644772313589,0.1736,2877.7,2877.2,0.00182381]
[1644772314192,0.01079767,2877.6,2877.2,0.00182381]
[1644772314390,0.01079767,2877.6,2877.2,0.87086381]
[1644772314590,0.01079767,2877.6,2877.3,0.86897]
[1644772314790,0.01079767,2877.6,2877.2,0.87086381]
[1644772314991,0.65379447,2878.0,2877.2,0.87086381]
[1644772315193,0.65379447,2878.0,2877.3,0.86899]
[1644772315194,0.00359238,2877.9,2877.3,0.86899]
[1644772315433,0.00359238,2877.9,2877.4,0.86901]
[1644772315434,0.01079767,2877.6,2877.4,0.86901]
[1644772316235,0.65818684,2878.1,2877.4,0.86901]
[1644772316435,0.65818684,2878.1,2877.3,0.3]
[1644772316436,0.01082281,2877.6,2877.3,0.3]
[1644772317035,0.01320637,2877.6,2877.3,0.3]
[1644772317235,0.01320637,2877.6,2877.3,1.16897]
[1644772317435,0.00238356,2877.6,2877.3,1.16897]
[1644772317636,0.01320642,2877.6,2877.3,2.03796]
[1644772318035,0.01320642,2877.6,2877.4,0.86901]
[1644772318235,0.01320642,2877.6,2877.4,2.03794]
[1644772318436,0.01320642,2877.6,2877.5,0.5]
[1644772318635,0.01320642,2877.6,2877.5,1.36891]
[1644772318636,0.00238356,2877.6,2877.5,1.36891]
[1644772319038,0.01320637,2877.6,2877.5,1.36891]
[1644772319289,0.01320637,2877.6,2877.5,1.96891]
[1644772319695,0.01320637,2877.6,2877.5,1.46891]
[1644772319889,0.00238356,2877.6,2877.5,1.46891]
[1644772320791,0.00238356,2877.6,2877.5,1.64251]
[1644772321394,0.00238356,2877.6,2877.5,1.46891]
[1644772321592,0.00238356,2877.6,2877.4,1.46901]
[1644772321791,0.00238356,2877.6,2877.4,3.20697]
[1644772321991,0.66348768,2878.1,2877.5,0.86898]
[1644772322290,1.06035659,2878.0,2877.5,0.87141291]
[1644772322693,0.00359238,2878.0,2877.5,0.87141291]
[1644772323131,1.06035659,2878.0,2877.5,1.74037291]
[1644772323332,1.05676421,2877.9,2877.5,1.74037291]
[1644772323531,1.05676421,2877.8,2877.5,1.74037291]
[1644772323735,1.05676421,2877.7,2877.6,0.00294743]
[1644772324233,5.44121423,2877.7,2877.6,0.00294743]
[1644772324432,5.61481423,2877.7,2877.6,0.00294743]
[1644772324631,4.67006015,2877.7,2877.6,0.00294743]
[1644772324931,4.67006015,2877.7,2877.5,0.00243291]
[1644772325131,0.1736,2877.6,2877.5,0.00538045]
[1644772325333,4.63141477,2877.6,2877.5,0.00538045]
[1644772325536,5.28762762,2877.6,2877.5,0.00538045]
[1644772325933,5.28762762,2877.6,2877.5,0.00243291]
[1644772326334,5.63141477,2877.6,2877.5,0.00243291]
[1644772326986,6.50384013,2877.6,2877.5,0.00243291]
[1644772327181,5.63141477,2877.6,2877.5,0.00243291]
[1644772327582,1.23036421,2877.6,2877.5,0.00243291]
[1644772328786,1.71239128,2877.6,2877.5,0.00243291]
[1644772329184,1.23036421,2877.6,2877.5,0.00243291]
[1644772329785,4.64074156,2877.6,2877.5,0.00243291]
[1644772330429,0.12020479,2876.6,2876.4,0.05013144]
[1644772330630,0.12020479,2876.6,2876.5,0.40423526]
[1644772330836,0.12020479,2876.6,2876.5,0.57803526]
[1644772331131,0.12020479,2876.6,2876.5,0.87803526]
[1644772331334,0.12020479,2876.6,2876.5,1.87803526]
[1644772332032,0.12020479,2876.6,2876.5,3.61639526]
[1644772333438,0.12020479,2876.6,2876.5,2.31639526]
[1644772333837,0.12020479,2876.6,2876.5,3.61639526]
[1644772335683,0.12020479,2876.6,2876.5,3.31639526]
[1644772335883,0.12020479,2876.6,2876.5,2.31639526]
[1644772336484,0.12020479,2876.6,2876.5,2.61639526]
[1644772336789,0.12020479,2876.6,2876.5,3.61639526]
[1644772336985,0.12656567,2876.6,2876.5,3.61639526]
[1644772338635,0.12656567,2876.6,2876.5,3.21216]
[1644772338832,0.12656567,2876.6,2876.5,3.61907066]
[1644772339233,0.12656567,2876.6,2876.5,4.11907066]
[1644772340838,0.12656567,2876.6,2876.5,3.94527066]
[1644772341039,0.12656567,2876.6,2876.5,4.11907066]
[1644772341780,0.12497546,2876.6,2876.5,4.97685418]
[1644772342181,0.12497546,2876.6,2876.5,4.11907066]
[1644772342685,0.12497546,2876.6,2876.5,24.31907066]
[1644772342881,0.12497546,2876.6,2876.5,25.17685418]
[1644772343282,0.12497546,2876.6,2876.5,25.34894547]
[1644772343283,0.12257546,2876.6,2876.5,25.34894547]
[1644772343483,0.12052797,2876.6,2876.5,26.0121206]
[1644772344083,0.12052797,2876.6,2876.5,25.34894547]
[1644772344881,0.65551812,2877.7,2876.7,20.2]
[1644772345082,4.3971004,2878.0,2877.0,2.60688]
[1644772345083,1.05543162,2877.6,2877.0,2.60688]
[1644772345281,1.05543162,2877.5,2877.2,20.2]
[1644772345538,1.05558379,2877.4,2877.3,21.10691066]
[1644772345738,0.00788633,2877.9,2877.4,20.2]
[1644772345933,0.6591105,2878.1,2877.5,1.5]
[1644772345934,0.56699683,2878.1,2877.5,1.5]
[1644772346139,0.00360271,2878.0,2877.6,1.36883]
[1644772346438,0.00360271,2878.0,2877.6,3.5376]
[1644772346636,0.00360271,2878.0,2877.7,0.3]
[1644772346835,0.57059954,2878.1,2877.8,1.36879]
[1644772347036,0.00360271,2878.1,2877.8,1.36879]
[1644772347236,1.48618011,2878.7,2877.9,1.73762]
[1644772347237,0.87242536,2878.5,2877.9,1.73762]
[1644772347436,0.00360271,2878.3,2877.9,1.8688]
[1644772347835,0.00788551,2878.1,2877.9,1.8688]
[1644772348035,0.00788551,2878.1,2878.0,0.8688]
[1644772348436,0.00788551,2878.1,2878.0,2.03758]
[1644772348637,0.00788551,2878.1,2878.0,1.73758]
[1644772348837,0.00360271,2878.3,2878.0,1.73758]
[1644772349038,0.00788551,2878.2,2878.0,2.73761]
[1644772349304,0.00788551,2878.2,2878.1,0.3]
[1644772349705,0.00788551,2878.2,2878.1,2.16881]
[1644772350110,0.00360271,2878.4,2878.2,0.8688]
[1644772350310,0.01132608,2878.3,2878.1,1.46021367]
[1644772350506,0.01132608,2878.3,2878.0,2.73752]
[1644772350709,0.01132608,2878.3,2878.0,2.03752]
[1644772350908,0.01132608,2878.3,2878.0,3.03752]
[1644772351108,0.00360271,2878.5,2878.0,3.03752]
[1644772351109,0.00360271,2878.5,2878.0,1.3]
[1644772351411,0.87242536,2878.7,2878.1,0.86879]
[1644772351412,0.00788377,2878.3,2878.1,0.86879]
[1644772352310,0.87602807,2878.6,2878.0,1.73761]
[1644772352510,0.87602807,2878.6,2878.0,0.00322875]
[1644772352511,0.00291861,2878.1,2878.0,0.00322875]
[1644772354937,0.69027705,2878.4,2878.0,0.00322875]
[1644772355839,0.65665042,2878.1,2878.0,0.00322875]
[1644772356043,3.50060386,2878.1,2878.0,0.00322875]
[1644772356241,3.67420386,2878.1,2878.0,0.00322875]
[1644772357082,0.1736,2878.1,2878.0,0.00322875]
[1644772357681,0.1736,2878.1,2877.8,0.00192547]
[1644772357682,0.17941961,2878.1,2877.8,0.00192547]
[1644772357882,0.65664407,2878.0,2877.8,0.00192547]
[1644772358282,0.00581961,2878.1,2877.8,0.00192547]
[1644772358283,0.65664407,2877.9,2877.8,0.00192547]
[1644772359289,0.87489961,2878.1,2877.8,0.00192547]
[1644772359486,0.65683914,2877.9,2877.8,0.00192547]
[1644772359885,0.65683914,2878.0,2877.8,0.00192547]
[1644772360086,0.65683914,2877.9,2877.8,0.00192547]
[1644772360286,0.00581961,2878.1,2877.8,0.00192547]
[1644772360744,0.6567317,2877.9,2877.8,0.00192547]
[1644772360936,0.00581961,2878.1,2877.8,0.01325709]
[1644772360937,0.17941961,2878.1,2877.8,0.01325709]
[1644772361137,1.04849961,2878.1,2877.8,0.01325709]
[1644772361341,0.17941961,2878.1,2877.8,0.01325709]
[1644772361537,0.18303589,2878.1,2877.8,0.01325709]
[1644772362043,0.18303589,2878.1,2877.8,0.00192547]
[1644772362236,0.656739,2877.9,2877.8,0.01325709]
[1644772362438,0.6608964,2877.9,2877.8,0.01325709]
[1644772362936,0.0041574,2877.9,2877.8,0.01325709]
[1644772363138,0.0041574,2877.9,2877.8,0.00192547]
[1644772363338,0.0041574,2877.9,2877.8,1.73957547]
[1644772364186,0.0041574,2877.9,2877.8,2.33957547]
[1644772364386,0.0041574,2877.9,2877.8,3.33957547]
[1644772364887,0.0777574,2878.1,2877.9,0.86888]
[1644772365486,0.0777574,2878.1,2877.9,1.73776]
[1644772365786,1.00702968,2878.0,2877.9,0.86888]
[1644772367388,0.00361628,2878.2,2877.9,1.73773]
[1644772367389,1.01064596,2878.2,2877.9,1.73773]
[1644772367589,1.00702968,2878.2,2878.1,0.8688]
[1644772369439,1.67871501,2878.3,2878.1,0.8688]
[1644772369640,1.00702968,2878.2,2878.0,2.60652]
[1644772369844,1.00702968,2878.2,2877.9,1.73761]
[1644772369845,1.00702968,2878.2,2877.9,0.8689]
[1644772370042,1.66376868,2878.2,2877.9,0.8689]
[1644772370440,2.80360482,2878.2,2877.5,0.1736]
[1644772370646,0.00361628,2878.4,2877.8,0.0113318]
[1644772370647,0.656739,2878.0,2877.8,0.0113318]
[1644772370844,1.66376868,2878.0,2877.8,0.0113318]
[1644772371040,1.00702968,2877.9,2877.8,0.0113318]
[1644772371684,1.00702968,2877.9,2877.4,1.73788]
[1644772371886,1.00702968,2877.8,2877.7,0.01133194]
[1644772372885,1.00702968,2877.8,2877.6,0.86895]
[1644772373086,0.656739,2878.0,2877.6,0.88028186]
[1644772373087,1.00702968,2877.7,2877.6,0.88028186]
[1644772373284,1.00702968,2877.7,2877.6,0.01133186]
[1644772373885,1.00702968,2877.7,2877.6,1.74911186]
[1644772374085,1.00702968,2877.7,2877.6,3.03778]
[1644772374286,1.00702968,2877.7,2877.6,3.82309472]
[1644772374485,1.00702968,2877.7,2877.6,3.33778]
[1644772374686,1.00702968,2877.7,2877.6,3.82310458]
[1644772375287,1.00702968,2877.7,2877.6,3.03778]
[1644772375543,1.00702968,2877.7,2877.6,1.73778]
[1644772375941,1.00702968,2877.7,2877.5,1.74934198]
[1644772376239,0.01132947,2878.1,2877.5,0.88034198]
[1644772376240,1.00702968,2877.6,2877.5,0.88034198]
[1644772376439,1.00702968,2877.6,2877.5,1.35448774]
[1644772376640,1.00702968,2877.6,2877.5,1.36581978]
[1644772377244,1.00702968,2877.6,2877.5,1.96581978]
[1644772377440,1.00702968,2877.6,2877.5,2.96581978]
[1644772377647,1.00702968,2877.6,2877.5,2.95448774]
[1644772379286,1.00702968,2877.6,2877.5,1.35448774]
[1644772382386,1.01112982,2877.6,2877.5,1.35448774]
[1644772383640,1.01112982,2877.6,2877.5,1.3567779]
[1644772386141,0.00410014,2877.6,2877.5,0.86901]
[1644772386343,0.00410014,2877.6,2877.5,1.36053469]
[1644772386543,0.97818932,2877.6,2877.5,1.36053469]
[1644772386788,0.97818932,2877.6,2877.5,0.49152469]
[1644772388684,0.97818932,2877.6,2877.5,1.09152469]
[1644772388884,0.97818932,2877.6,2877.5,2.09152469]
[1644772390534,0.97818932,2877.6,2877.5,2.0918062]
[1644772390733,0.97818932,2877.6,2877.5,0.4918062]
[1644772390936,0.97818932,2877.6,2877.5,0.49181235]
[1644772391133,0.97818932,2877.6,2877.4,3.4872121]
[1644772391335,0.97408918,2877.5,2877.4,3.4872121]
[1644772391534,0.97408918,2877.5,2877.4,3.97898946]
[1644772391739,0.97408918,2877.5,2877.4,4.57768199]
[1644772391935,0.00410014,2877.6,2877.4,5.56631955]
[1644772392135,0.00410014,2877.6,2877.4,5.24817444]
[1644772392336,0.00410014,2877.6,2877.5,1.4917155]
[1644772392835,0.97718731,2877.6,2877.5,25.6603455]
[1644772393036,0.00213258,2877.6,2877.5,26.58231872]
[1644772393235,0.00071097,2877.6,2877.5,27.05591872]
[1644772394190,0.00071097,2877.6,2877.5,27.22801001]
[1644772397588,0.97511764,2877.6,2877.5,24.6312734]
[1644772397791,0.00530854,2877.8,2877.5,24.6312734]
[1644772398041,0.97474277,2877.7,2877.6,22.6028455]
[1644772398240,0.97474277,2877.7,2877.6,22.2340855]
[1644772398440,0.97474277,2877.7,2877.6,23.40617679]
[1644772398840,0.97474277,2877.7,2877.6,24.32778194]
[1644772399444,0.00361628,2878.3,2877.9,20.2]
[1644772399445,0.01132947,2878.1,2877.9,20.2]
[1644772399743,0.01132947,2878.1,2878.0,27.50361726]
[1644772399941,0.01132947,2878.1,2878.0,28.8515086]
[1644772400345,0.00361628,2878.7,2878.0,23.8515086]
[1644772400642,0.656739,2878.6,2878.2,0.86865]
[1644772400844,0.656739,2878.5,2878.3,0.5]
[1644772401042,0.656739,2878.5,2878.3,1.36857]
[1644772401448,0.03514511,2878.7,2878.3,1.36857]
[1644772401449,0.656739,2878.6,2878.3,1.36857]
[1644772401883,0.00788349,2878.5,2878.4,0.86864]
[1644772402082,0.00788349,2878.5,2878.4,1.36864]
[1644772402281,0.00788349,2878.5,2878.4,2.36864]
[1644772402885,0.656739,2878.7,2878.4,2.36864]
[1644772403083,0.66823877,2878.6,2878.4,2.36864]
[1644772403383,0.00788349,2878.6,2878.4,3.23727]
[1644772403583,0.00788349,2878.6,2878.5,0.86869]
[1644772403983,0.656739,2878.7,2878.5,1.73734]
[1644772404184,0.66807266,2878.7,2878.5,1.73734]
[1644772404383,0.66807266,2878.7,2878.5,2.73734]
[1644772404884,0.66807266,2878.7,2878.6,21.2]
[1644772405185,0.656739,2878.7,2878.6,1.0]
[1644772405436,0.67168882,2878.8,2878.6,1.0]
[1644772405636,0.66807254,2878.8,2878.6,1.86858]
[1644772406035,0.01133354,2878.8,2878.7,21.5685]
[1644772406440,0.656739,2878.9,2878.7,2.3685]
[1644772406637,0.66807242,2878.9,2878.7,2.3685]
[1644772406835,0.66807242,2878.9,2878.8,1.0]
[1644772407037,0.01133342,2878.9,2878.8,0.5]
[1644772407437,0.01133342,2878.9,2878.8,1.5]
[1644772407637,0.65772219,2878.9,2878.8,2.36852]
[1644772409585,0.65772219,2878.9,2878.8,22.56852]
[1644772410184,0.65772219,2878.9,2878.8,2.36852]
[1644772410585,0.0113333,2879.0,2878.8,2.36852]
[1644772410586,0.66905549,2879.0,2878.8,2.36852]
[1644772410787,0.66905549,2879.0,2878.7,3.34930446]
[1644772410788,4.85,2878.9,2878.7,3.34930446]
[1644772410986,4.85,2878.9,2878.5,2.6085662]
[1644772410987,6.59631378,2878.9,2878.5,0.0032562]
[1644772411188,0.87555638,2878.7,2878.5,0.0032562]
[1644772411487,1.74438638,2878.7,2878.5,0.0032562]
[1644772411688,0.87555638,2878.7,2878.5,0.0032562]
[1644772412388,2.57698543,2878.7,2878.5,0.0032562]
[1644772412688,2.57698543,2878.7,2876.9,2.72110664]
[1644772412689,0.1736,2878.6,2876.9,2.72110664]
[1644772412941,0.65659601,2878.2,2877.7,0.01022913]
[1644772413341,0.0025461,2877.5,2877.3,3.47545]
[1644772414247,0.0025461,2877.5,2877.4,0.86885]
[1644772414842,0.0025461,2877.5,2877.4,1.86885]
[1644772415043,0.0025461,2877.5,2877.4,0.86885]
[1644772416342,0.0025461,2877.5,2877.4,1.86885]
[1644772417796,0.0025461,2877.5,2877.3,23.68678223]
[1644772417797,0.0025461,2877.5,2877.3,0.01133223]
[1644772418197,0.1736,2877.4,2877.3,0.01133223]
[1644772418397,0.1736,2877.4,2876.7,3.9178]
[1644772418698,0.1736,2877.4,2877.3,0.01133229]
[1644772419401,1.11334039,2877.4,2877.3,0.01133229]
[1644772419598,1.11334039,2877.4,2876.6,0.00126796]
[1644772419897,0.93974039,2877.3,2877.2,0.01133235]
[1644772420559,9.1,2877.3,2877.2,3.235e-05]
[1644772420757,9.1,2877.3,2876.4,0.00126796]
[1644772420758,7.1963364,2877.3,2876.4,0.00126796]
[1644772420955,5.0,2877.0,2876.2,0.52460143]
[1644772421156,0.93974039,2876.9,2876.3,0.00126796]
[1644772421362,1.11354039,2876.9,2876.3,0.00126796]
[1644772421556,1.92354039,2876.9,2876.3,0.00126796]
[1644772421762,0.93974039,2876.8,2876.3,0.00126796]
[1644772421960,0.93974039,2876.8,2876.1,0.52460143]
[1644772422156,0.93974039,2876.8,2876.2,0.00126796]
[1644772422556,0.93974039,2876.8,2876.1,0.52333347]
[1644772422757,0.93974039,2876.8,2876.2,0.00125019]
[1644772423055,3.6738,2877.2,2876.2,0.00125019]
[1644772423056,3.5,2877.2,2876.2,0.00125019]
[1644772423257,4.6202408,2877.4,2876.2,0.00125019]
[1644772423457,3.6202408,2877.4,2876.2,0.00125019]
[1644772423658,0.94407304,2877.3,2876.2,0.87049019]
[1644772423857,0.94407304,2877.3,2876.3,0.52458366]
[1644772424057,0.94407304,2877.3,2876.4,0.52333347]
[1644772424287,4.2859266,2877.3,2876.5,0.52458366]
[1644772424493,0.94407304,2877.2,2876.6,0.52333347]
[1644772424689,0.94407304,2877.2,2876.7,0.01132908]
[1644772424989,0.94407304,2877.2,2876.7,0.01257927]
[1644772425190,0.17837937,2877.4,2876.7,0.01132908]
[1644772425191,0.94407304,2877.3,2876.7,0.01132908]
[1644772425390,0.94407304,2877.2,2876.7,0.01132908]
[1644772425591,0.17837937,2877.4,2876.3,0.87049019]
[1644772425592,0.94407304,2877.1,2876.3,0.87049019]
[1644772425790,0.17837937,2877.4,2876.9,0.0113289]
[1644772425991,0.9580939,2877.3,2876.9,0.0113289]
[1644772426795,0.9580939,2877.3,2876.5,0.00125019]
[1644772427191,0.9580939,2877.3,2877.0,0.01132878]
[1644772427592,3.50113372,2877.2,2877.0,0.01132878]
[1644772427792,1.2580939,2877.1,2877.0,0.01132878]
[1644772428038,4.71224167,2877.1,2877.0,0.01132878]
[1644772428236,4.71224167,2877.1,2876.2,0.00125019]
[1644772428237,1.13458851,2876.8,2876.2,0.00125019]
[1644772428438,0.1738,2877.0,2876.2,0.00125019]
[1644772428638,4.58054777,2877.1,2876.2,0.00125019]
[1644772428839,4.51761389,2877.0,2876.2,0.50238617]
[1644772429038,0.95769363,2876.9,2876.3,0.00125019]
[1644772429240,0.95769363,2876.8,2876.3,0.00125019]
[1644772429438,1.0,2877.1,2876.5,0.00955812]
[1644772429641,2.11453069,2877.0,2876.5,0.00955812]
[1644772429838,0.95929849,2876.9,2876.5,0.00955812]
[1644772430439,0.95929849,2876.9,2876.1,0.00125019]
[1644772430644,1.08485444,2876.5,2876.2,0.1738]
[1644772430841,3.3958263,2876.4,2876.3,0.00125019]
[1644772431040,1.08485444,2876.5,2876.1,0.03948741]
[1644772431699,1.08485444,2876.5,2876.1,0.00125019]
[1644772431890,1.08485444,2876.5,2876.2,0.00955911]
[1644772432092,4.51968202,2876.5,2876.2,0.00955911]
[1644772432693,3.43482758,2876.5,2876.2,0.00955911]
[1644772432893,4.3799494,2876.6,2876.1,0.00125019]
[1644772433092,5.34175333,2876.6,2876.2,0.01039232]
[1644772433292,1.91292,2876.6,2876.2,0.01039232]
[1644772433492,5.26355844,2876.6,2876.2,0.01039232]
[1644772433893,5.20420175,2876.6,2876.2,0.01039232]
[1644772434091,1.91292,2876.6,2876.1,0.00125019]
[1644772434294,0.86961,2876.4,2876.3,0.01039214]
[1644772434493,0.00293358,2876.1,2876.0,1.5]
[1644772435742,0.00293358,2876.1,2876.0,1.93765465]
[1644772436344,0.00293358,2876.1,2876.0,1.9375091]
[1644772437043,0.00293358,2876.1,2876.0,2.1113091]
[1644772437845,0.00293358,2876.1,2876.0,1.6738]
[1644772438445,0.00293358,2876.1,2876.0,2.11130952]
[1644772439045,0.00293358,2876.1,2876.0,2.80687952]
[1644772439690,0.00293358,2876.1,2876.0,2.36937]
[1644772440284,0.00293358,2876.1,2876.0,2.80745406]
[1644772440883,0.00293358,2876.1,2876.0,1.93808406]
[1644772441284,0.00293358,2876.1,2876.0,1.5]
[1644772441685,0.00293358,2876.1,2876.0,1.93806604]
[1644772441886,0.00293358,2876.1,2876.0,1.8]
[1644772442084,0.00293358,2876.1,2876.0,2.53806531]
[1644772442284,0.00496817,2876.1,2876.0,1.50114906]
[1644772442688,0.00496817,2876.1,2876.0,1.88922342]
[1644772443142,0.00496817,2876.1,2876.0,1.45114906]
[1644772447187,0.00496817,2876.1,2876.0,1.45325567]
[1644772451344,0.00496817,2876.1,2876.0,1.89529363]
[1644772451841,0.00496817,2876.1,2876.0,1.89530033]
[1644772452041,0.00496817,2876.1,2876.0,2.49530033]
[1644772452242,0.00496817,2876.1,2876.0,2.66910033]
[1644772452643,0.00496817,2876.1,2876.0,2.36910033]
[1644772452846,0.00496817,2876.1,2876.0,2.06910033]
[1644772453048,0.00496817,2876.1,2876.0,2.36910033]
[1644772453646,0.00496817,2876.1,2876.0,2.06910033]
[1644772454048,0.00496817,2876.1,2876.0,2.66910033]
[1644772454287,0.18446468,2877.0,2876.1,2.4]
[1644772454490,2.89366,2877.4,2876.3,1.73841]
[1644772454491,1.3288,2877.4,2876.3,1.73841]
[1644772454688,0.01066468,2877.0,2876.4,0.94204466]
[1644772454890,0.01066468,2877.0,2876.5,0.44204466]
[1644772455088,0.01066468,2877.0,2876.5,0.94204466]
[1644772455289,0.01066468,2877.0,2876.5,0.8]
[1644772455690,0.0025461,2877.5,2876.5,0.8]
[1644772455888,0.0025461,2877.5,2876.6,3.05395574]
[1644772455889,0.01066645,2877.0,2876.6,3.05395574]
[1644772456087,1.01446293,2876.9,2876.7,0.44648574]
[1644772456688,0.62180022,2876.6,2876.5,2.53824]
[1644772456888,0.62180022,2876.6,2876.5,3.98473717]
[1644772458351,0.62180022,2876.6,2876.5,2.42029717]
[1644772458546,0.62180022,2876.6,2876.5,1.42029717]
[1644772458844,1.63532909,2876.6,2876.5,1.12029717]
[1644772459546,1.63532909,2876.6,2876.5,0.94649717]
[1644772459748,0.62180022,2876.6,2876.5,0.94649717]
[1644772460147,0.62180022,2876.6,2876.5,1.24649717]
[1644772460347,0.62180022,2876.6,2876.5,0.94649717]
[1644772460550,1.63556368,2876.6,2876.5,0.94649717]
[1644772462488,1.63903439,2876.6,2876.5,0.94776243]
[1644772463591,1.63903439,2876.6,2876.5,2.68611243]
[1644772466542,1.63903439,2876.6,2876.5,0.94776243]
[1644772467339,1.63903439,2876.6,2876.5,0.44649717]
[1644772467742,2.65343439,2876.6,2876.5,0.44649717]
[1644772468241,6.27427703,2876.6,2876.0,1.45114906]
[1644772468440,6.12999357,2876.6,2876.0,1.45114906]
[1644772468842,5.08671357,2876.6,2876.0,1.45114906]
[1644772469039,1.63967093,2876.6,2876.2,0.86935]
[1644772469290,0.62527093,2876.6,2876.2,0.86935]
[1644772471595,0.01132098,2876.5,2876.2,0.86935]
[1644772472400,0.01132098,2876.5,2876.1,0.0113229]
[1644772472602,0.00499001,2876.5,2876.0,1.45114906]
[1644772472798,0.00499001,2876.5,2876.1,0.01132276]
[1644772472799,3.52361307,2876.5,2876.1,0.01132276]
[1644772473054,3.49678044,2876.5,2876.1,0.01132276]
[1644772473255,0.86951,2876.4,2876.1,0.01132276]
[1644772473655,0.86951,2876.4,2876.0,1.45114906]
[1644772473856,3.41780479,2876.3,2876.0,1.45114906]
[1644772474357,3.34642624,2876.3,2876.0,1.45114906]
[1644772474969,4.21604624,2876.3,2876.0,1.45114906]
[1644772475157,0.86966,2876.2,2876.0,1.46123089]
[1644772475359,1.7393,2876.2,2876.0,1.46123089]
[1644772475758,2.7393,2876.2,2876.0,1.46123089]
[1644772475958,3.47355263,2876.1,2876.0,1.46123089]
[1644772476163,3.47355263,2876.1,2876.0,1.45114906]
[1644772476366,3.47355263,2876.1,2876.0,1.46123107]
[1644772476367,4.47355263,2876.1,2876.0,1.46123107]
[1644772476799,4.47355263,2876.1,2875.7,0.1325945]
[1644772476800,4.85,2876.0,2875.7,0.1325945]
[1644772476996,4.85,2876.0,2875.4,0.8689]
[1644772476997,5.06114545,2875.9,2875.4,0.8689]
[1644772477595,6.80085545,2875.9,2875.4,0.8689]
[1644772478094,0.86986,2875.8,2875.4,0.8689]
[1644772478395,5.93100545,2875.9,2875.4,0.8689]
[1644772478597,1.97635186,2875.9,2875.4,0.8689]
[1644772478797,1.10649186,2875.9,2875.5,0.00297476]
[1644772479596,1.10649186,2875.9,2875.0,0.1738]
[1644772479997,3.55183356,2876.1,2875.6,0.0098903]
[1644772480198,0.8697,2876.0,2875.6,0.0098903]
[1644772480443,3.32639813,2875.9,2875.6,0.0098903]
[1644772480842,3.32639813,2875.9,2875.0,0.1738]
[1644772481044,0.84279859,2875.8,2875.0,0.1738]
[1644772481243,3.36196524,2875.7,2875.6,0.00989013]
[1644772481452,1.73949,2875.9,2875.6,0.00989013]
[1644772481946,0.86977,2875.9,2875.6,0.00989013]
[1644772482143,0.86977,2875.9,2875.0,0.1738]
[1644772482144,0.00255022,2875.7,2875.0,0.1738]
[1644772482342,0.00255022,2875.7,2875.6,0.00961702]
[1644772483344,0.00255022,2875.7,2875.0,0.1738]
[1644772483544,3.30358381,2875.7,2875.5,0.00961736]
[1644772483745,0.00255022,2875.7,2875.5,0.00961736]
[1644772484392,0.00255022,2875.7,2875.1,0.00123616]
[1644772484793,0.00255022,2875.7,2875.5,0.00961753]
[1644772485596,0.00255022,2875.7,2874.9,0.00123616]
[1644772485993,0.00255022,2875.7,2875.5,0.0097032]
[1644772485994,0.87236022,2875.7,2875.5,0.0097032]
[1644772486196,3.34175531,2875.6,2875.5,0.0097032]
[1644772486394,1.74217022,2875.7,2875.5,0.0097032]
[1644772486595,0.00255022,2875.7,2874.7,0.92355798]
[1644772486795,0.00255022,2875.7,2874.7,0.74975798]
[1644772486996,0.87232022,2875.7,2874.7,0.44975798]
[1644772487199,3.38572013,2875.6,2874.7,0.44975798]
[1644772487396,3.38572013,2875.6,2874.8,1.04369]
[1644772487597,3.38572013,2875.6,2874.9,0.00123618]
[1644772487598,0.00254733,2875.6,2874.9,0.00123618]
[1644772487800,1.10155098,2875.6,2874.9,0.00123618]
[1644772488048,0.00254733,2875.6,2874.9,0.39315465]
[1644772488248,0.00254733,2875.6,2875.0,0.1738]
[1644772488249,0.00794798,2875.4,2875.0,0.1738]
[1644772488448,0.00794798,2875.4,2875.1,0.39315465]
[1644772488747,0.00794798,2875.4,2875.2,0.6738]
[1644772489049,0.00794798,2875.4,2875.3,0.39191847]
[1644772489248,1.06712685,2875.4,2874.7,0.14975798]
[1644772489448,3.34016327,2875.5,2874.8,1.26172137]
[1644772489649,1.07793614,2875.4,2874.9,0.4043629]
[1644772489850,0.0113029,2875.4,2875.0,0.39194137]
[1644772490048,0.8811229,2875.4,2875.0,0.39194137]